[Event "Titled Tuesday Blitz October 11 Late 2022"]
[White "Gubajdullin, Alexei"]
[Black "Evdokimov, Alexey"]
[WhiteFideId "4141202"]
[BlackFideId "24162450"]
[WhiteElo "2200"]
[BlackElo "2154"]
[Result "1-0"]
[Round "05"]
[TimeControl "180+1"]
[Date "2022.10.12"]
[WhiteClock "0:01:01"]
[BlackClock "0:00:01"]

1. d4 {[%clk 0:02:55]}  Nf6 {[%clk 0:02:58]} 2. Nf3 {[%clk 0:02:55]}  g6 {[%clk 0:02:52]} 3. Bf4 {[%clk 0:02:54]}  Bg7 {[%clk 0:02:52]} 4. e3 {[%clk 0:02:51]}  O-O {[%clk 0:02:52]} 5. Be2 {[%clk 0:02:51]}  d6 {[%clk 0:02:49]} 6. O-O {[%clk 0:02:51]}  c5 {[%clk 0:02:48]} 7. c3 {[%clk 0:02:50]}  Nc6 {[%clk 0:02:46]} 8. Nbd2 {[%clk 0:02:48]}  cxd4 {[%clk 0:02:41]} 9. exd4 {[%clk 0:02:46]}  Nd5 {[%clk 0:02:35]} 10. Bg3 {[%clk 0:02:44]}  e5 {[%clk 0:02:35]} 11. Nc4 {[%clk 0:02:41]}  Nf4 {[%clk 0:02:17]} 12. dxe5 {[%clk 0:02:27]}  dxe5 {[%clk 0:02:12]} 13. Bxf4 {[%clk 0:02:26]}  exf4 {[%clk 0:02:10]} 14. Nd6 {[%clk 0:02:27]}  Qc7 {[%clk 0:01:58]} 15. Nxc8 {[%clk 0:02:25]}  Raxc8 {[%clk 0:01:57]} 16. Qa4 {[%clk 0:02:19]}  a6 {[%clk 0:01:52]} 17. Rfe1 {[%clk 0:02:16]}  Rcd8 {[%clk 0:01:43]} 18. Bf1 {[%clk 0:02:15]}  Qb6 {[%clk 0:01:33]} 19. Qb3 {[%clk 0:02:11]}  Qxb3 {[%clk 0:01:24]} 20. axb3 {[%clk 0:02:11]}  Rfe8 {[%clk 0:01:17]} 21. b4 {[%clk 0:02:11]}  Ne5 {[%clk 0:01:11]} 22. Ng5 {[%clk 0:02:07]}  h6 {[%clk 0:01:02]} 23. Ne4 {[%clk 0:02:07]}  Nd7 {[%clk 0:00:50]} 24. Nd6 {[%clk 0:02:06]}  Rxe1 {[%clk 0:00:48]} 25. Rxe1 {[%clk 0:02:05]}  Rb8 {[%clk 0:00:28]} 26. Bc4 {[%clk 0:02:05]}  Ne5 {[%clk 0:00:25]} 27. Bb3 {[%clk 0:02:04]}  Kf8 {[%clk 0:00:19]} 28. Kf1 {[%clk 0:01:55]}  g5 {[%clk 0:00:17]} 29. Nf5 {[%clk 0:01:53]}  Nc6 {[%clk 0:00:14]} 30. h4 {[%clk 0:01:44]}  Rd8 {[%clk 0:00:09]} 31. h5 {[%clk 0:01:34]}  Rd2 {[%clk 0:00:08]} 32. Re2 {[%clk 0:01:34]}  Rxe2 {[%clk 0:00:07]} 33. Kxe2 {[%clk 0:01:34]}  Ne5 {[%clk 0:00:07]} 34. Nd6 {[%clk 0:01:23]}  b6 {[%clk 0:00:06]} 35. Nc8 {[%clk 0:01:22]}  a5 {[%clk 0:00:04]} 36. Nxb6 {[%clk 0:01:17]}  axb4 {[%clk 0:00:04]} 37. cxb4 {[%clk 0:01:17]}  g4 {[%clk 0:00:04]} 38. Bd5 {[%clk 0:01:15]}  f3+ {[%clk 0:00:02]} 39. gxf3 {[%clk 0:01:14]}  gxf3+ {[%clk 0:00:02]} 40. Bxf3 {[%clk 0:01:14]}  Ke7 {[%clk 0:00:03]} 41. b3 {[%clk 0:01:10]}  Kd6 {[%clk 0:00:03]} 42. Be4 {[%clk 0:01:05]}  Nd7 {[%clk 0:00:02]} 43. Nc4+ {[%clk 0:01:04]}  Kc7 {[%clk 0:00:02]} 44. b5 {[%clk 0:01:04]}  Ne5 {[%clk 0:00:02]} 45. b6+ {[%clk 0:01:04]}  Kb8 {[%clk 0:00:02]} 46. Na5 {[%clk 0:01:02]}  Nd7 {[%clk 0:00:01]} 47. b7 {[%clk 0:01:01]} 1-0


[Site "https://www.chess.com"]

[Event "Titled Tuesday Blitz October 11 Late 2022"]
[White "Hajiyev, Kanan"]
[Black "Jensen, Matthew R"]
[WhiteFideId "13404148"]
[BlackFideId "2018110"]
[WhiteElo "2118"]
[BlackElo "2308"]
[Result "1-0"]
[Round "05"]
[TimeControl "180+1"]
[Date "2022.10.12"]
[WhiteClock "0:00:07"]
[BlackClock "0:00:19"]

1. d4 {[%clk 0:02:55]}  d5 {[%clk 0:02:59]} 2. Nf3 {[%clk 0:02:56]}  e6 {[%clk 0:02:59]} 3. c4 {[%clk 0:02:57]}  c6 {[%clk 0:02:59]} 4. cxd5 {[%clk 0:02:57]}  exd5 {[%clk 0:02:59]} 5. Nc3 {[%clk 0:02:58]}  Bf5 {[%clk 0:02:57]} 6. Bf4 {[%clk 0:02:22]}  Qb6 {[%clk 0:02:55]} 7. Qd2 {[%clk 0:02:18]}  Nf6 {[%clk 0:02:53]} 8. e3 {[%clk 0:02:18]}  Bb4 {[%clk 0:02:49]} 9. Bd3 {[%clk 0:02:16]}  Ne4 {[%clk 0:02:46]} 10. Qc2 {[%clk 0:02:09]}  Nd7 {[%clk 0:02:23]} 11. O-O {[%clk 0:02:07]}  Ndf6 {[%clk 0:02:21]} 12. Ne5 {[%clk 0:02:00]}  g5 {[%clk 0:01:58]} 13. Bxg5 {[%clk 0:01:52]}  Nxg5 {[%clk 0:01:57]} 14. Bxf5 {[%clk 0:01:51]}  Rg8 {[%clk 0:01:49]} 15. f4 {[%clk 0:01:35]}  Ne6 {[%clk 0:01:32]} 16. Bxh7 {[%clk 0:01:15]}  Rg7 {[%clk 0:01:19]} 17. Bf5 {[%clk 0:01:13]}  Ke7 {[%clk 0:01:04]} 18. a3 {[%clk 0:00:52]}  Bd6 {[%clk 0:00:55]} 19. b4 {[%clk 0:00:51]}  Rh8 {[%clk 0:00:43]} 20. Na4 {[%clk 0:00:48]}  Qd8 {[%clk 0:00:26]} 21. Nc5 {[%clk 0:00:47]}  Rh5 {[%clk 0:00:26]} 22. Nxb7 {[%clk 0:00:24]}  Qh8 {[%clk 0:00:23]} 23. Nxc6+ {[%clk 0:00:12]}  Kf8 {[%clk 0:00:23]} 24. h3 {[%clk 0:00:13]}  Rxh3 {[%clk 0:00:23]} 25. Bxh3 {[%clk 0:00:12]}  Qxh3 {[%clk 0:00:23]} 26. Nxd6 {[%clk 0:00:12]}  Ne4 {[%clk 0:00:23]} 27. Nxe4 {[%clk 0:00:11]}  Qg4 {[%clk 0:00:23]} 28. Nf6 {[%clk 0:00:08]}  Qh4 {[%clk 0:00:22]} 29. Nxd5 {[%clk 0:00:08]}  Rh7 {[%clk 0:00:23]} 30. Nce7 {[%clk 0:00:04]}  Qh2+ {[%clk 0:00:22]} 31. Kf2 {[%clk 0:00:05]}  Qh4+ {[%clk 0:00:23]} 32. Ke2 {[%clk 0:00:05]}  Qg4+ {[%clk 0:00:24]} 33. Kd3 {[%clk 0:00:04]}  Rh2 {[%clk 0:00:24]} 34. Rf2 {[%clk 0:00:04]}  Qg7 {[%clk 0:00:23]} 35. Raf1 {[%clk 0:00:04]}  Qh7+ {[%clk 0:00:23]} 36. Kd2 {[%clk 0:00:04]}  Qg7 {[%clk 0:00:24]} 37. Qd3 {[%clk 0:00:04]}  Qf6 {[%clk 0:00:23]} 38. g4 {[%clk 0:00:05]}  Qh4 {[%clk 0:00:23]} 39. Rxh2 {[%clk 0:00:05]}  Qxh2+ {[%clk 0:00:24]} 40. Qe2 {[%clk 0:00:05]}  Qh4 {[%clk 0:00:24]} 41. Rf2 {[%clk 0:00:06]}  Qh7 {[%clk 0:00:24]} 42. Nf5 {[%clk 0:00:06]}  Qg6 {[%clk 0:00:23]} 43. Qc4 {[%clk 0:00:06]}  Kg8 {[%clk 0:00:22]} 44. Qc8+ {[%clk 0:00:07]}  Kh7 {[%clk 0:00:23]} 45. Qd7 {[%clk 0:00:07]}  Ng7 {[%clk 0:00:19]} 46. Rh2+ {[%clk 0:00:07]}  Kg8 {[%clk 0:00:19]} 47. Nde7+ {[%clk 0:00:07]} 1-0


[Site "https://www.chess.com"]

[Event "Titled Tuesday Blitz October 11 Late 2022"]
[White "Hoffmann, Asa"]
[Black "Floresvillar Gonzalez, Luis Migu"]
[WhiteFideId "2001470"]
[BlackFideId "5100542"]
[WhiteElo "2117"]
[BlackElo "2040"]
[Result "1-0"]
[Round "05"]
[TimeControl "180+1"]
[Date "2022.10.12"]
[WhiteClock "0:00:14"]
[BlackClock "0:00:12"]

1. d4 {[%clk 0:02:43]}  c6 {[%clk 0:02:57]} 2. Bg5 {[%clk 0:02:40]}  Qa5+ {[%clk 0:02:52]} 3. Bd2 {[%clk 0:02:38]}  Qb6 {[%clk 0:02:51]} 4. Bc3 {[%clk 0:02:38]}  d5 {[%clk 0:02:50]} 5. Nd2 {[%clk 0:02:38]}  Bf5 {[%clk 0:02:50]} 6. f3 {[%clk 0:02:33]}  Nf6 {[%clk 0:02:49]} 7. g4 {[%clk 0:02:33]}  Bg6 {[%clk 0:02:49]} 8. h4 {[%clk 0:02:33]}  h6 {[%clk 0:02:46]} 9. Nh3 {[%clk 0:02:31]}  e6 {[%clk 0:02:46]} 10. Nf4 {[%clk 0:02:30]}  Bh7 {[%clk 0:02:45]} 11. e3 {[%clk 0:02:30]}  Bd6 {[%clk 0:02:45]} 12. Nd3 {[%clk 0:02:26]}  Nbd7 {[%clk 0:02:43]} 13. f4 {[%clk 0:02:25]}  Bxd3 {[%clk 0:02:25]} 14. Bxd3 {[%clk 0:02:22]}  O-O-O {[%clk 0:02:16]} 15. Qf3 {[%clk 0:02:21]}  Kb8 {[%clk 0:02:13]} 16. O-O-O {[%clk 0:02:19]}  Bb4 {[%clk 0:02:12]} 17. Bxb4 {[%clk 0:02:16]}  Qxb4 {[%clk 0:02:12]} 18. g5 {[%clk 0:02:10]}  hxg5 {[%clk 0:02:11]} 19. hxg5 {[%clk 0:02:10]}  Ne4 {[%clk 0:02:04]} 20. Nxe4 {[%clk 0:02:05]}  dxe4 {[%clk 0:02:04]} 21. Bxe4 {[%clk 0:02:04]}  Nb6 {[%clk 0:01:58]} 22. Kb1 {[%clk 0:01:56]}  Nc4 {[%clk 0:01:56]} 23. b3 {[%clk 0:01:52]}  Rxh1 {[%clk 0:01:54]} 24. Qxh1 {[%clk 0:01:49]}  Nxe3 {[%clk 0:01:50]} 25. Rd3 {[%clk 0:01:42]}  Nd5 {[%clk 0:01:35]} 26. Bxd5 {[%clk 0:01:40]}  cxd5 {[%clk 0:01:34]} 27. Kb2 {[%clk 0:01:35]}  g6 {[%clk 0:01:33]} 28. c3 {[%clk 0:01:34]}  Qd6 {[%clk 0:01:29]} 29. Rf3 {[%clk 0:01:30]}  a6 {[%clk 0:01:28]} 30. Qh7 {[%clk 0:01:28]}  Rd7 {[%clk 0:01:27]} 31. Qg7 {[%clk 0:01:27]}  Ka7 {[%clk 0:01:26]} 32. Qe5 {[%clk 0:01:27]}  Qc6 {[%clk 0:01:18]} 33. Rh3 {[%clk 0:01:22]}  Rd8 {[%clk 0:01:08]} 34. Rh7 {[%clk 0:01:16]}  Rc8 {[%clk 0:01:05]} 35. Rh3 {[%clk 0:01:08]}  Qb5 {[%clk 0:00:59]} 36. a4 {[%clk 0:00:57]}  Qf1 {[%clk 0:00:55]} 37. Re3 {[%clk 0:00:54]}  Qf2+ {[%clk 0:00:46]} 38. Re2 {[%clk 0:00:53]}  Qf1 {[%clk 0:00:37]} 39. Qe3 {[%clk 0:00:46]}  Qd1 {[%clk 0:00:36]} 40. Qd2 {[%clk 0:00:44]}  Qf1 {[%clk 0:00:35]} 41. Rf2 {[%clk 0:00:43]}  Qg1 {[%clk 0:00:33]} 42. Qe2 {[%clk 0:00:36]}  Qh1 {[%clk 0:00:30]} 43. c4 {[%clk 0:00:32]}  dxc4 {[%clk 0:00:29]} 44. bxc4 {[%clk 0:00:31]}  Qc6 {[%clk 0:00:27]} 45. Kc3 {[%clk 0:00:23]}  Qxa4 {[%clk 0:00:26]} 46. Rf1 {[%clk 0:00:20]}  Qa3+ {[%clk 0:00:25]} 47. Kd2 {[%clk 0:00:19]}  Qb2+ {[%clk 0:00:25]} 48. Ke3 {[%clk 0:00:18]}  Qxe2+ {[%clk 0:00:25]} 49. Kxe2 {[%clk 0:00:18]}  Rxc4 {[%clk 0:00:26]} 50. Kd3 {[%clk 0:00:18]}  b5 {[%clk 0:00:25]} 51. Rh1 {[%clk 0:00:17]}  Rc1 {[%clk 0:00:22]} 52. Rxc1 {[%clk 0:00:16]}  Kb6 {[%clk 0:00:21]} 53. d5 {[%clk 0:00:15]}  exd5 {[%clk 0:00:21]} 54. Kd4 {[%clk 0:00:15]}  a5 {[%clk 0:00:19]} 55. Kxd5 {[%clk 0:00:15]}  a4 {[%clk 0:00:14]} 56. Rc6+ {[%clk 0:00:14]}  Ka5 {[%clk 0:00:14]} 57. Kc5 {[%clk 0:00:14]}  a3 {[%clk 0:00:14]} 58. Rc8 {[%clk 0:00:15]}  Ka4 {[%clk 0:00:13]} 59. Ra8+ {[%clk 0:00:14]}  Kb3 {[%clk 0:00:13]} 60. Rxa3+ {[%clk 0:00:13]}  Kxa3 {[%clk 0:00:13]} 61. Kxb5 {[%clk 0:00:13]}  Kb3 {[%clk 0:00:13]} 62. Kc5 {[%clk 0:00:14]}  Kc3 {[%clk 0:00:13]} 63. Kd6 {[%clk 0:00:14]}  Kd4 {[%clk 0:00:14]} 64. Ke7 {[%clk 0:00:14]}  Ke4 {[%clk 0:00:14]} 65. Kxf7 {[%clk 0:00:14]}  Kf5 {[%clk 0:00:10]} 66. Kg7 {[%clk 0:00:14]}  Kxf4 {[%clk 0:00:10]} 67. Kxg6 {[%clk 0:00:14]}  Ke5 {[%clk 0:00:11]} 68. Kf7 {[%clk 0:00:14]}  Kf5 {[%clk 0:00:11]} 69. g6 {[%clk 0:00:14]}  Kg5 {[%clk 0:00:11]} 70. g7 {[%clk 0:00:14]}  Kh6 {[%clk 0:00:12]} 71. g8=Q {[%clk 0:00:14]} 1-0


[Site "https://www.chess.com"]

[Event "Titled Tuesday Blitz October 11 Late 2022"]
[White "Ibarra Jerez, Jose Carlos"]
[Black "Vrbljanac, Aleksandar"]
[WhiteFideId "2226332"]
[BlackFideId "932817"]
[WhiteElo "2627"]
[BlackElo "2309"]
[Result "1-0"]
[Round "05"]
[TimeControl "180+1"]
[Date "2022.10.11"]
[WhiteClock "0:00:21"]
[BlackClock "0:00:01"]

1. e4 {[%clk 0:02:59]}  e5 {[%clk 0:02:56]} 2. Nf3 {[%clk 0:02:59]}  Nc6 {[%clk 0:02:56]} 3. d4 {[%clk 0:02:59]}  exd4 {[%clk 0:02:55]} 4. Nxd4 {[%clk 0:03:00]}  Nf6 {[%clk 0:02:55]} 5. Nxc6 {[%clk 0:02:58]}  bxc6 {[%clk 0:02:54]} 6. e5 {[%clk 0:02:59]}  Qe7 {[%clk 0:02:53]} 7. Qe2 {[%clk 0:02:58]}  Nd5 {[%clk 0:02:54]} 8. Nd2 {[%clk 0:02:58]}  g6 {[%clk 0:02:52]} 9. c4 {[%clk 0:02:58]}  Ba6 {[%clk 0:02:52]} 10. Nf3 {[%clk 0:02:52]}  Bg7 {[%clk 0:02:48]} 11. Bg5 {[%clk 0:02:50]}  Qb4+ {[%clk 0:02:25]} 12. Qd2 {[%clk 0:02:49]}  Qxd2+ {[%clk 0:02:14]} 13. Bxd2 {[%clk 0:02:50]}  Nb6 {[%clk 0:02:13]} 14. b3 {[%clk 0:02:50]}  O-O {[%clk 0:02:12]} 15. O-O-O {[%clk 0:02:49]}  Rfe8 {[%clk 0:02:10]} 16. Bf4 {[%clk 0:02:39]}  Bb7 {[%clk 0:02:00]} 17. e6 {[%clk 0:02:07]}  fxe6 {[%clk 0:01:15]} 18. Bxc7 {[%clk 0:02:07]}  d5 {[%clk 0:01:14]} 19. Be5 {[%clk 0:02:00]}  Nd7 {[%clk 0:01:10]} 20. Bxg7 {[%clk 0:01:57]}  Kxg7 {[%clk 0:01:11]} 21. cxd5 {[%clk 0:01:51]}  cxd5 {[%clk 0:01:09]} 22. Bb5 {[%clk 0:01:50]}  Rac8+ {[%clk 0:00:49]} 23. Kb2 {[%clk 0:01:50]}  Bc6 {[%clk 0:00:48]} 24. Nd4 {[%clk 0:01:44]}  Bxb5 {[%clk 0:00:36]} 25. Nxb5 {[%clk 0:01:45]}  Rc5 {[%clk 0:00:37]} 26. Nd6 {[%clk 0:01:18]}  Rf8 {[%clk 0:00:35]} 27. Rd2 {[%clk 0:01:17]}  a6 {[%clk 0:00:32]} 28. Re1 {[%clk 0:01:14]}  e5 {[%clk 0:00:19]} 29. Ne4 {[%clk 0:01:14]}  Ra5 {[%clk 0:00:12]} 30. Rc1 {[%clk 0:01:11]}  Nf6 {[%clk 0:00:10]} 31. Nc5 {[%clk 0:01:05]}  Kf7 {[%clk 0:00:07]} 32. Nb7 {[%clk 0:01:03]}  Rb5 {[%clk 0:00:05]} 33. Nd6+ {[%clk 0:01:03]}  Ke6 {[%clk 0:00:06]} 34. Nxb5 {[%clk 0:01:03]}  axb5 {[%clk 0:00:07]} 35. Rc6+ {[%clk 0:01:03]}  Kd7 {[%clk 0:00:06]} 36. Rb6 {[%clk 0:00:59]}  d4 {[%clk 0:00:07]} 37. f3 {[%clk 0:00:56]}  Nd5 {[%clk 0:00:04]} 38. Rxb5 {[%clk 0:00:56]}  Ke6 {[%clk 0:00:05]} 39. Rc2 {[%clk 0:00:52]}  Nc3 {[%clk 0:00:05]} 40. Rxc3 {[%clk 0:00:49]}  dxc3+ {[%clk 0:00:05]} 41. Kxc3 {[%clk 0:00:50]}  Rc8+ {[%clk 0:00:06]} 42. Kd3 {[%clk 0:00:49]}  Rd8+ {[%clk 0:00:06]} 43. Ke3 {[%clk 0:00:49]}  Rc8 {[%clk 0:00:06]} 44. Kd3 {[%clk 0:00:47]}  Rd8+ {[%clk 0:00:06]} 45. Ke4 {[%clk 0:00:47]}  Rd4+ {[%clk 0:00:06]} 46. Ke3 {[%clk 0:00:48]}  Rd6 {[%clk 0:00:05]} 47. a4 {[%clk 0:00:47]}  Rc6 {[%clk 0:00:05]} 48. a5 {[%clk 0:00:46]}  Rc3+ {[%clk 0:00:05]} 49. Ke4 {[%clk 0:00:45]}  Rc8 {[%clk 0:00:06]} 50. Rxe5+ {[%clk 0:00:44]}  Kd6 {[%clk 0:00:06]} 51. Rd5+ {[%clk 0:00:43]}  Kc6 {[%clk 0:00:06]} 52. Re5 {[%clk 0:00:42]}  Rb8 {[%clk 0:00:06]} 53. Re7 {[%clk 0:00:38]}  Rb4+ {[%clk 0:00:04]} 54. Ke5 {[%clk 0:00:33]}  Rxb3 {[%clk 0:00:05]} 55. Rxh7 {[%clk 0:00:31]}  Rb5+ {[%clk 0:00:05]} 56. Kf6 {[%clk 0:00:31]}  Rxa5 {[%clk 0:00:06]} 57. Kxg6 {[%clk 0:00:31]}  Ra2 {[%clk 0:00:07]} 58. g3 {[%clk 0:00:29]}  Kd5 {[%clk 0:00:06]} 59. f4 {[%clk 0:00:29]}  Ke4 {[%clk 0:00:06]} 60. f5 {[%clk 0:00:26]}  Ra6+ {[%clk 0:00:05]} 61. f6 {[%clk 0:00:27]}  Kf3 {[%clk 0:00:05]} 62. Kg7 {[%clk 0:00:23]}  Kg4 {[%clk 0:00:05]} 63. f7 {[%clk 0:00:23]}  Ra7 {[%clk 0:00:06]} 64. Kg8 {[%clk 0:00:23]}  Kg5 {[%clk 0:00:01]} 65. f8=Q {[%clk 0:00:21]} 1-0


[Site "https://www.chess.com"]

[Event "Titled Tuesday Blitz October 11 Late 2022"]
[White "Jacobson, Brandon"]
[Black "Slugin, Sergey"]
[WhiteFideId "30901561"]
[BlackFideId "4122569"]
[WhiteElo "2451"]
[BlackElo "2330"]
[Result "1-0"]
[Round "05"]
[TimeControl "180+1"]
[Date "2022.10.11"]
[WhiteClock "0:01:24"]
[BlackClock "0:00:05"]

1. Nf3 {[%clk 0:03:00]}  Nf6 {[%clk 0:02:59]} 2. b3 {[%clk 0:03:00]}  g6 {[%clk 0:02:59]} 3. Bb2 {[%clk 0:03:01]}  Bg7 {[%clk 0:02:59]} 4. g3 {[%clk 0:03:01]}  O-O {[%clk 0:03:00]} 5. Bg2 {[%clk 0:03:02]}  d5 {[%clk 0:02:55]} 6. c4 {[%clk 0:03:02]}  c6 {[%clk 0:02:41]} 7. O-O {[%clk 0:03:02]}  Re8 {[%clk 0:02:37]} 8. d4 {[%clk 0:02:58]}  Bf5 {[%clk 0:02:34]} 9. e3 {[%clk 0:02:57]}  a5 {[%clk 0:02:31]} 10. Nc3 {[%clk 0:02:57]}  Ne4 {[%clk 0:02:31]} 11. Qe2 {[%clk 0:02:54]}  Nxc3 {[%clk 0:02:27]} 12. Bxc3 {[%clk 0:02:55]}  Be4 {[%clk 0:02:28]} 13. Rfd1 {[%clk 0:02:55]}  Nd7 {[%clk 0:02:26]} 14. Bf1 {[%clk 0:02:55]}  Nb6 {[%clk 0:02:17]} 15. Nd2 {[%clk 0:02:49]}  Bf5 {[%clk 0:02:17]} 16. e4 {[%clk 0:02:49]}  dxe4 {[%clk 0:02:16]} 17. Nxe4 {[%clk 0:02:49]}  Qc8 {[%clk 0:02:13]} 18. Bg2 {[%clk 0:02:47]}  Bg4 {[%clk 0:02:12]} 19. f3 {[%clk 0:02:44]}  Bf5 {[%clk 0:02:09]} 20. a4 {[%clk 0:02:34]}  Qc7 {[%clk 0:01:57]} 21. f4 {[%clk 0:02:29]}  Nd7 {[%clk 0:01:47]} 22. Rac1 {[%clk 0:02:25]}  Bxe4 {[%clk 0:01:43]} 23. Qxe4 {[%clk 0:02:22]}  Qb6 {[%clk 0:01:40]} 24. Qc2 {[%clk 0:02:15]}  e6 {[%clk 0:01:35]} 25. Bf3 {[%clk 0:02:12]}  Bf8 {[%clk 0:01:31]} 26. Kg2 {[%clk 0:02:12]}  Bg7 {[%clk 0:01:30]} 27. Rd3 {[%clk 0:02:10]}  Qc7 {[%clk 0:01:25]} 28. Qd2 {[%clk 0:02:09]}  Nf6 {[%clk 0:01:19]} 29. d5 {[%clk 0:02:04]}  exd5 {[%clk 0:01:14]} 30. cxd5 {[%clk 0:02:05]}  Rad8 {[%clk 0:00:48]} 31. Be5 {[%clk 0:02:05]}  Rxe5 {[%clk 0:00:42]} 32. fxe5 {[%clk 0:02:04]}  Qxe5 {[%clk 0:00:43]} 33. dxc6 {[%clk 0:02:03]}  Rxd3 {[%clk 0:00:44]} 34. Qxd3 {[%clk 0:02:02]}  bxc6 {[%clk 0:00:45]} 35. Rxc6 {[%clk 0:02:01]}  h5 {[%clk 0:00:39]} 36. Qc3 {[%clk 0:01:57]}  Qf5 {[%clk 0:00:22]} 37. Rc5 {[%clk 0:01:56]}  Nd5 {[%clk 0:00:22]} 38. Qc1 {[%clk 0:01:45]}  Bb2 {[%clk 0:00:20]} 39. Qd2 {[%clk 0:01:22]}  Nf4+ {[%clk 0:00:04]} 40. gxf4 {[%clk 0:01:23]}  Qxc5 {[%clk 0:00:05]} 41. Qxb2 {[%clk 0:01:24]} 1-0


[Site "https://www.chess.com"]

[Event "Titled Tuesday Blitz October 11 Late 2022"]
[White "Jakubowski, Krzysztof"]
[Black "Tari, Aryan"]
[WhiteFideId "1112848"]
[BlackFideId "1510045"]
[WhiteElo "2373"]
[BlackElo "2612"]
[Result "0-1"]
[Round "05"]
[TimeControl "180+1"]
[Date "2022.10.12"]
[WhiteClock "0:00:38"]
[BlackClock "0:00:08"]

1. e4 {[%clk 0:03:00]}  c6 {[%clk 0:02:59]} 2. Nf3 {[%clk 0:02:59]}  d5 {[%clk 0:03:00]} 3. d3 {[%clk 0:02:59]}  Qc7 {[%clk 0:03:00]} 4. Nbd2 {[%clk 0:02:57]}  e5 {[%clk 0:02:55]} 5. g3 {[%clk 0:02:56]}  Nf6 {[%clk 0:02:54]} 6. Bg2 {[%clk 0:02:55]}  Bd6 {[%clk 0:02:55]} 7. O-O {[%clk 0:02:54]}  O-O {[%clk 0:02:55]} 8. exd5 {[%clk 0:02:53]}  cxd5 {[%clk 0:02:55]} 9. c4 {[%clk 0:02:53]}  d4 {[%clk 0:02:46]} 10. Re1 {[%clk 0:02:49]}  Na6 {[%clk 0:02:40]} 11. a3 {[%clk 0:02:48]}  Nc5 {[%clk 0:02:39]} 12. Nb3 {[%clk 0:02:42]}  Nxb3 {[%clk 0:02:05]} 13. Qxb3 {[%clk 0:02:41]}  a5 {[%clk 0:02:06]} 14. Bg5 {[%clk 0:02:39]}  Nd7 {[%clk 0:02:06]} 15. Qc2 {[%clk 0:02:35]}  a4 {[%clk 0:02:03]} 16. Bd2 {[%clk 0:02:27]}  Nc5 {[%clk 0:01:55]} 17. Bb4 {[%clk 0:02:19]}  Ra7 {[%clk 0:01:21]} 18. Nd2 {[%clk 0:02:10]}  f5 {[%clk 0:01:21]} 19. Bd5+ {[%clk 0:01:56]}  Kh8 {[%clk 0:01:21]} 20. Nf3 {[%clk 0:01:51]}  b6 {[%clk 0:01:04]} 21. Qe2 {[%clk 0:01:48]}  e4 {[%clk 0:00:35]} 22. Nxd4 {[%clk 0:01:40]}  Bd7 {[%clk 0:00:32]} 23. dxe4 {[%clk 0:01:35]}  Be5 {[%clk 0:00:30]} 24. Nxf5 {[%clk 0:01:31]}  Bxf5 {[%clk 0:00:27]} 25. exf5 {[%clk 0:01:32]}  Bf6 {[%clk 0:00:28]} 26. Rad1 {[%clk 0:01:28]}  h6 {[%clk 0:00:28]} 27. Be6 {[%clk 0:01:24]}  Qc6 {[%clk 0:00:26]} 28. Bd5 {[%clk 0:01:21]}  Qc8 {[%clk 0:00:25]} 29. Qf3 {[%clk 0:01:20]}  Bxb2 {[%clk 0:00:23]} 30. g4 {[%clk 0:01:17]}  Bf6 {[%clk 0:00:21]} 31. Re2 {[%clk 0:01:15]}  Re8 {[%clk 0:00:19]} 32. Rde1 {[%clk 0:01:14]}  Rae7 {[%clk 0:00:14]} 33. Rxe7 {[%clk 0:01:11]}  Rxe7 {[%clk 0:00:15]} 34. Rxe7 {[%clk 0:01:10]}  Bxe7 {[%clk 0:00:16]} 35. Qe3 {[%clk 0:01:09]}  Bf6 {[%clk 0:00:15]} 36. Kg2 {[%clk 0:01:07]}  Kh7 {[%clk 0:00:08]} 37. f4 {[%clk 0:01:06]}  Qd8 {[%clk 0:00:07]} 38. Bxc5 {[%clk 0:01:01]}  bxc5 {[%clk 0:00:08]} 39. Qxc5 {[%clk 0:00:53]}  Qb8 {[%clk 0:00:07]} 40. Qe3 {[%clk 0:00:48]}  Qb2+ {[%clk 0:00:07]} 41. Kf3 {[%clk 0:00:45]}  Bd4 {[%clk 0:00:07]} 42. Qd3 {[%clk 0:00:41]}  Qf2+ {[%clk 0:00:07]} 43. Ke4 {[%clk 0:00:40]}  Bc5 {[%clk 0:00:08]} 44. f6 {[%clk 0:00:39]}  Qe1+ {[%clk 0:00:08]} 45. Kf5 {[%clk 0:00:38]}  g6# {[%clk 0:00:08]} 0-1


[Site "https://www.chess.com"]

[Event "Titled Tuesday Blitz October 11 Late 2022"]
[White "Kamsky, Gata"]
[Black "Mamedov, Rauf"]
[WhiteFideId "2000024"]
[BlackFideId "13401653"]
[WhiteElo "2666"]
[BlackElo "2650"]
[Result "1/2-1/2"]
[Round "05"]
[TimeControl "180+1"]
[Date "2022.10.11"]
[WhiteClock "0:00:08"]
[BlackClock "0:00:19"]

1. e4 {[%clk 0:03:00]}  c5 {[%clk 0:02:59]} 2. Nf3 {[%clk 0:02:57]}  Nc6 {[%clk 0:02:59]} 3. d4 {[%clk 0:02:56]}  cxd4 {[%clk 0:02:59]} 4. Nxd4 {[%clk 0:02:55]}  g6 {[%clk 0:02:59]} 5. c4 {[%clk 0:02:51]}  Bg7 {[%clk 0:02:59]} 6. Be3 {[%clk 0:02:51]}  Qb6 {[%clk 0:03:00]} 7. Nb5 {[%clk 0:02:45]}  Qa5+ {[%clk 0:03:00]} 8. N5c3 {[%clk 0:02:44]}  Nf6 {[%clk 0:03:00]} 9. Be2 {[%clk 0:02:41]}  Nxe4 {[%clk 0:02:58]} 10. O-O {[%clk 0:02:28]}  Nxc3 {[%clk 0:02:52]} 11. Nxc3 {[%clk 0:02:27]}  d6 {[%clk 0:02:52]} 12. Rc1 {[%clk 0:02:17]}  O-O {[%clk 0:02:52]} 13. a3 {[%clk 0:02:16]}  Be6 {[%clk 0:02:49]} 14. Bd2 {[%clk 0:01:53]}  Rfc8 {[%clk 0:02:46]} 15. Nd5 {[%clk 0:01:50]}  Qd8 {[%clk 0:02:46]} 16. b4 {[%clk 0:01:49]}  Nd4 {[%clk 0:02:38]} 17. Bd3 {[%clk 0:01:46]}  b5 {[%clk 0:02:38]} 18. Bg5 {[%clk 0:01:27]}  Nc6 {[%clk 0:01:57]} 19. Be4 {[%clk 0:01:05]}  Bxd5 {[%clk 0:01:36]} 20. Bxd5 {[%clk 0:01:00]}  bxc4 {[%clk 0:01:36]} 21. Rxc4 {[%clk 0:01:00]}  Ne5 {[%clk 0:01:35]} 22. Rh4 {[%clk 0:00:53]}  Rab8 {[%clk 0:01:36]} 23. f4 {[%clk 0:00:49]}  Nd7 {[%clk 0:01:30]} 24. f5 {[%clk 0:00:49]}  Nf6 {[%clk 0:01:28]} 25. fxg6 {[%clk 0:00:46]}  hxg6 {[%clk 0:01:29]} 26. Qd3 {[%clk 0:00:41]}  Qb6+ {[%clk 0:01:17]} 27. Be3 {[%clk 0:00:31]}  Qb5 {[%clk 0:01:17]} 28. Bc4 {[%clk 0:00:29]}  Qd7 {[%clk 0:00:59]} 29. Bg5 {[%clk 0:00:20]}  d5 {[%clk 0:00:53]} 30. Bxf6 {[%clk 0:00:20]}  Bxf6 {[%clk 0:00:53]} 31. Bxd5 {[%clk 0:00:19]}  Kg7 {[%clk 0:00:51]} 32. Rh3 {[%clk 0:00:16]}  Rc3 {[%clk 0:00:49]} 33. Rxf6 {[%clk 0:00:08]}  Rxd3 {[%clk 0:00:39]} 34. Rxf7+ {[%clk 0:00:08]}  Kg8 {[%clk 0:00:39]} 35. Rxd3 {[%clk 0:00:09]}  Qxd5 {[%clk 0:00:20]} 36. Rxd5 {[%clk 0:00:09]}  Kxf7 {[%clk 0:00:21]} 37. Ra5 {[%clk 0:00:10]}  Rb7 {[%clk 0:00:21]} 38. Kf2 {[%clk 0:00:09]}  Rc7 {[%clk 0:00:21]} 39. Ke3 {[%clk 0:00:09]}  Kf6 {[%clk 0:00:21]} 40. h4 {[%clk 0:00:09]}  e5 {[%clk 0:00:21]} 41. g3 {[%clk 0:00:09]}  Kf5 {[%clk 0:00:21]} 42. Rc5 {[%clk 0:00:08]}  Re7 {[%clk 0:00:19]} 43. b5 {[%clk 0:00:07]}  Rd7 {[%clk 0:00:17]} 44. a4 {[%clk 0:00:07]}  Rd4 {[%clk 0:00:17]} 45. a5 {[%clk 0:00:07]}  Ra4 {[%clk 0:00:17]} 46. b6 {[%clk 0:00:07]}  axb6 {[%clk 0:00:18]} 47. axb6 {[%clk 0:00:07]}  Rb4 {[%clk 0:00:18]} 48. Rc6 {[%clk 0:00:08]}  Rb3+ {[%clk 0:00:19]} 49. Kf2 {[%clk 0:00:08]}  e4 {[%clk 0:00:19]} 50. Rc5+ {[%clk 0:00:08]}  Kf6 {[%clk 0:00:19]} 51. Rc6+ {[%clk 0:00:08]}  Kf5 {[%clk 0:00:20]} 52. Rc5+ {[%clk 0:00:08]}  Kf6 {[%clk 0:00:20]} 53. Rc6+ {[%clk 0:00:08]}  Kf5 {[%clk 0:00:19]} 1/2-1/2


[Site "https://www.chess.com"]